bitfinex/quotes_SOLUSD_20250418
["timestamp","ask_amount","ask_price","bid_price","bid_amount"]
[1745015638425,0.063,134.08,134.07,106.50752933]
[1745015640405,0.063,134.08,134.07,95.56]
[1745015640731,0.063,134.08,134.07,106.50752933]
[1745015653032,0.063,134.08,134.07,113.96631951]
[1745015653535,0.063,134.09,134.07,159.96631951]
[1745015653741,0.063,134.09,134.08,10.94752933]
[1745015654536,0.063,134.09,134.08,18.40576322]
[1745015655134,0.063,134.11,134.1,10.94752933]
[1745015655341,0.063,134.11,134.1,91.94752933]
[1745015657540,0.063,134.11,134.1,99.40465088]
[1745015662147,0.063,134.11,134.1,91.94752933]
[1745015662843,0.063,134.11,134.1,106.50752933]
[1745015682373,0.063,134.11,134.1,95.56]
[1745015683172,0.063,134.11,134.1,106.50752933]
[1745015686174,0.063,134.11,134.1,95.56]
[1745015686842,1.6952,134.11,134.1,95.56]
[1745015688978,9.1517655,134.11,134.1,95.56]
[1745015691578,9.1517655,134.11,134.1,14.56]
[1745015709889,7.5195655,134.11,134.1,14.56]
[1745015710768,7.5195655,134.11,134.09,10.94752933]
[1745015710966,7.5195655,134.11,134.1,10.94752933]
[1745015711168,0.063,134.11,134.1,10.94752933]
[1745015715084,0.063,134.11,134.1,91.94752933]
[1745015735588,0.063,134.11,134.1,106.48752933]
[1745015736608,0.063,134.11,134.1,113.94465088]
[1745015737027,0.063,134.11,134.1,106.48752933]
[1745015742420,0.063,134.11,134.1,95.54]
[1745015743924,0.063,134.11,134.1,106.48752933]
[1745015762158,0.063,134.11,134.1,113.94465088]
[1745015765133,0.063,134.11,134.1,106.48752933]
[1745015765860,0.063,134.11,134.1,95.54]
[1745015766159,0.063,134.11,134.1,14.54]
[1745015766338,0.063,134.11,134.1,25.48752933]
[1745015766545,0.063,134.11,134.1,14.54]
[1745015766744,0.063,134.11,134.1,25.48752933]
[1745015769463,0.063,134.11,134.1,14.54]
[1745015778468,0.28432314,134.1,134.06,14.54]
[1745015778760,31.35033976,134.09,134.06,14.54]
[1745015780965,0.14216157,134.06,134.03,0.063]
[1745015781164,11.0896909,134.04,134.03,0.063]
[1745015781463,63.98873976,134.04,134.03,1e-08]
[1745015781665,37.98873976,134.04,134.03,1e-08]
[1745015781864,38.2730629,134.04,134.03,1e-08]
[1745015782164,41.97938786,134.04,134.03,1e-08]
[1745015782965,49.43984742,134.04,134.03,1e-08]
[1745015783771,34.35950842,134.04,134.03,1e-08]
[1745015784063,27.72110842,134.04,134.03,1e-08]
[1745015784262,53.86326999,134.04,134.03,1e-08]
[1745015784564,1.5597,134.1,134.03,10.94752934]
[1745015784754,1.5597,134.1,134.06,10.94752933]
[1745015784956,33.4586321,134.08,134.06,10.94752933]
[1745015785964,7.4586321,134.08,134.06,10.94752933]
[1745015786754,33.45771522,134.09,134.07,10.94752933]
[1745015787161,33.45726171,134.1,134.08,10.94752933]
[1745015788454,0.063,134.11,134.09,10.94752933]
[1745015788455,7.51971698,134.11,134.09,10.94752933]
[1745015802279,7.51971698,134.11,134.08,10.94752933]
[1745015802985,7.51971698,134.11,134.09,10.94752933]
[1745015803283,7.51971698,134.11,134.05,146.78980516]
[1745015803476,7.51971698,134.11,134.08,10.94752933]
[1745015812583,7.51971698,134.11,134.07,14.54]
[1745015812879,29.73933976,134.1,134.07,14.54]
[1745015813085,18.79181043,134.1,134.07,25.48752933]
[1745015813274,18.79181043,134.1,134.07,14.54]
[1745015813475,18.79181043,134.1,134.07,25.48752933]
[1745015814188,7.45767767,134.09,134.07,25.48752933]
[1745015815283,7.45767767,134.09,134.08,10.94752933]
[1745015819991,7.45767767,134.09,134.07,25.48752933]
[1745015823496,7.45767767,134.09,134.07,10.94752933]
[1745015824096,7.45767767,134.09,134.06,25.48752933]
[1745015825977,18.64964886,134.06,134.03,81.00000001]
[1745015826285,18.64964886,134.06,134.03,1e-08]
[1745015826286,56.0236629,134.04,134.03,1e-08]
[1745015827900,63.48412246,134.04,134.03,1e-08]
[1745015830002,0.28432314,134.02,134.0,0.063]
[1745015830296,11.23185247,134.02,134.0,0.063]
[1745015830478,18.79181043,134.01,134.0,0.063]
[1745015831690,26.25394012,134.01,134.0,0.063]
[1745015836399,44.65114891,134.04,134.0,0.063]
[1745015836400,26.11355666,134.03,134.0,0.063]
[1745015836601,7.46101619,134.03,134.02,10.94752933]
[1745015837307,7.46101619,134.03,134.01,10.94752933]
[1745015838808,7.46101619,134.03,134.0,92.01052933]
[1745015841102,18.40854552,134.03,134.0,81.063]
[1745015841301,18.40854552,134.03,134.0,0.063]
[1745015841508,37.06108599,134.03,134.0,0.063]
[1745015841991,26.11355666,134.03,134.0,0.063]
[1745015847195,7.46101619,134.03,134.01,10.94752933]
[1745015847394,7.46101619,134.03,134.02,10.94752933]
[1745015849407,7.46045956,134.04,134.02,10.94752933]
[1745015852113,7.46045956,134.04,134.01,10.94752933]
[1745015854617,18.40798889,134.04,134.0,92.01052933]
[1745015856328,29.73933976,134.03,134.0,81.063]
[1745015856507,7.46157289,134.02,134.0,81.063]
[1745015856710,18.40910222,134.02,134.0,81.063]
[1745015858714,18.40910222,134.02,134.0,0.063]
[1745015860024,7.46157289,134.02,134.0,0.063]
[1745015884815,29.73933976,134.01,134.0,0.063]
[1745015886133,37.20146945,134.01,134.0,0.063]
[1745015886339,0.28432314,134.0,133.98,0.03]
[1745015886639,29.73933976,133.99,133.98,0.03]
[1745015888343,26.25505395,133.99,133.98,0.03]
[1745015895650,7.46324352,133.99,133.98,0.03]
[1745015896642,7.46157289,134.02,133.98,10.97752933]
[1745015896843,26.11381354,134.03,134.0,10.94752933]
[1745015897744,26.11381354,134.03,133.99,10.94752933]
[1745015898670,37.06134287,134.03,133.98,91.97752933]
[1745015900348,37.06134287,134.03,133.99,10.94752933]
[1745015900738,37.06134287,134.03,133.98,91.97752933]
[1745015904353,37.06134287,134.03,133.98,106.51752933]
[1745015908859,26.11381354,134.03,133.98,106.51752933]
[1745015909054,37.06134287,134.03,133.98,106.51752933]
[1745015909557,26.11381354,134.03,133.98,106.51752933]
[1745015909750,37.06134287,134.03,133.98,106.51752933]
[1745015910259,7.46212969,134.01,133.98,95.57]
[1745015911839,7.46212969,134.01,133.98,106.51752933]
[1745015928372,7.46212969,134.01,133.98,91.97752933]
[1745015947183,7.46212969,134.01,133.98,81.03]
[1745015953772,10.94752933,134.0,133.98,81.03]
[1745015954389,18.40965902,134.01,133.98,81.03]
[1745015955585,18.40965902,134.01,133.98,0.03]
[1745015960987,37.06498324,134.01,133.98,0.03]
[1745015961181,10.94752933,134.0,133.98,0.03]
[1745015961362,29.73933976,133.99,133.98,0.03]
[1745015963697,42.77347246,133.99,133.98,0.03]
[1745015963987,68.77347246,133.99,133.98,0.03]
[1745015967569,63.20258328,133.99,133.98,0.03]
[1745015972398,68.76852252,133.99,133.98,0.03]
[1745015973405,63.20258328,133.99,133.98,0.03]
[1745015977097,52.25505395,133.99,133.98,0.03]
[1745015977281,7.46324352,133.99,133.98,0.03]
[1745015977678,18.64964886,134.05,133.98,10.97752933]
[1745015978005,0.14216157,134.01,133.98,0.03]
[1745015978299,10.94752933,134.01,133.98,0.03]
[1745015978497,10.94752933,134.02,133.98,10.97752933]
[1745015978817,11.37401404,134.02,133.98,0.03]
[1745015979104,18.79181043,134.0,133.98,0.03]
[1745015979281,7.46324352,133.99,133.98,0.03]
[1745015995790,7.46212969,134.01,133.98,10.97752933]
[1745015995995,7.46212969,134.01,133.99,10.94752933]
[1745015996613,7.46212969,134.01,133.98,10.97752933]
[1745016000536,7.46212969,134.01,133.98,0.03]
[1745016002231,7.46212969,134.01,133.98,10.97752933]
[1745016002434,7.46101619,134.03,134.0,10.94752933]
[1745016002636,7.46101619,134.03,133.98,0.03]
[1745016002637,7.46101619,134.03,134.01,10.94752933]
[1745016004229,7.46101619,134.03,134.0,10.94752933]
[1745016008624,7.46101619,134.03,134.01,10.94752933]
[1745016010841,7.46101619,134.03,134.0,10.94752933]
[1745016014635,7.46101619,134.03,134.01,10.94752933]
[1745016014837,7.46101619,134.03,134.0,10.94752933]
[1745016015040,7.46101619,134.03,133.98,81.03]
[1745016015242,7.46101619,134.03,134.0,10.94752933]
[1745016022958,7.46074781,134.04,134.01,10.94752933]
[1745016023145,18.71264886,134.06,134.03,10.94752933]
[1745016023363,18.71264886,134.06,134.04,10.94752933]
[1745016024368,18.71264886,134.06,134.03,10.94752933]
[1745016024738,7.45990302,134.05,134.03,10.94752933]
[1745016027767,7.52248431,134.06,134.04,10.94752933]
[1745016027965,0.063,134.06,134.05,10.94752933]
[1745016029157,0.063,134.06,134.05,18.40743235]
[1745016029343,0.063,134.06,134.05,10.94752933]
[1745016031243,0.063,134.06,134.05,125.40743235]
[1745016031847,0.063,134.06,134.05,169.19754967]
[1745016044979,0.063,134.06,134.05,143.19754967]
[1745016047508,0.063,134.06,134.05,157.71754967]
[1745016052109,0.063,134.06,134.05,106.46752933]
[1745016052288,0.063,134.06,134.05,150.25764665]
[1745016052784,0.063,134.06,134.05,157.71754967]
[1745016054595,0.063,134.06,134.05,183.71754967]
[1745016065118,0.063,134.06,134.05,139.92743235]
[1745016066219,0.063,134.06,134.05,183.71754967]
[1745016082730,0.063,134.06,134.05,176.25764665]
[1745016083613,0.063,134.06,134.05,183.71754967]
[1745016095036,0.063,134.06,134.05,157.71754967]
[1745016095338,0.063,134.06,134.05,113.92743235]
[1745016105348,0.063,134.06,134.05,157.71754967]
[1745016105647,0.063,134.06,134.05,113.92743235]
[1745016106222,0.063,134.06,134.05,177.71754967]
[1745016110052,0.063,134.06,134.05,203.71754967]
[1745016129449,0.063,134.06,134.05,159.92743235]
[1745016133380,0.063,134.06,134.05,203.71754967]
[1745016138970,0.063,134.06,134.05,132.46752933]
[1745016139172,0.063,134.06,134.05,106.46752933]
[1745016139688,0.063,134.06,134.05,150.25764665]
[1745016139981,0.063,134.07,134.06,10.94752933]
[1745016142487,0.063,134.07,134.06,18.40687589]
[1745016143185,0.063,134.07,134.06,99.40687589]
[1745016145791,0.063,134.07,134.06,91.94752933]
[1745016152277,0.063,134.07,134.06,81.0]
[1745016153098,0.063,134.07,134.06,91.94752933]
[1745016155995,46.56688969,134.11,134.1,28.6733]
[1745016156484,46.56688969,134.11,134.06,81.0]
[1745016156485,0.28432314,134.09,134.06,81.0]
[1745016156680,0.28432314,134.09,134.06,10.94752933]
[1745016157196,0.28432314,134.09,134.05,14.52]
[1745016157785,0.28432314,134.09,134.06,10.94752933]
[1745016158089,7.45823389,134.08,134.06,10.94752933]
[1745016163503,7.45823389,134.08,134.05,14.52]
[1745016163805,7.45823389,134.08,134.06,10.94752933]
[1745016165397,7.45823389,134.08,134.05,25.46752933]
[1745016166106,9.00673389,134.08,134.05,25.46752933]
[1745016167991,9.00673389,134.08,134.06,10.94752933]
[1745016168395,9.00673389,134.08,134.05,25.46752933]
[1745016171609,9.00673389,134.08,134.05,14.52]
[1745016171791,18.79181043,134.07,134.05,14.52]
[1745016172111,18.79181043,134.07,134.04,10.94752933]
[1745016173511,18.79181043,134.07,134.03,10.94752933]
[1745016173810,7.45934656,134.06,134.03,10.94752933]
[1745016174592,18.79181043,134.07,134.05,10.94752933]
[1745016174804,18.79181043,134.07,134.02,81.0]
[1745016174805,7.45906084,134.07,134.06,10.94752933]
[1745016186314,26.25087127,134.07,134.04,10.94752933]
[1745016187308,26.25087127,134.07,134.05,10.94752933]
[1745016188017,26.25087127,134.07,134.03,14.5]
[1745016188317,7.45990302,134.05,134.03,25.44752933]
[1745016190811,26.25115699,134.06,134.04,10.94752933]
[1745016192024,26.25115699,134.06,134.05,10.94752933]
[1745016192215,7.45934656,134.06,134.05,10.94752933]
[1745016194923,7.45879018,134.07,134.05,10.94752933]
[1745016196732,7.45879018,134.07,134.06,10.94752933]
[1745016196936,0.14216157,134.1,134.06,10.94752933]
[1745016197140,18.79181043,134.1,134.08,10.94752933]
[1745016197336,18.79181043,134.1,134.07,10.94752933]
[1745016198018,7.45712155,134.1,134.08,10.94752933]
[1745016199133,26.16137316,134.11,134.08,10.94752933]
[1745016199311,26.16137316,134.11,134.04,7.46017707]
[1745016199635,26.16137316,134.11,134.07,10.94752933]
[1745016207335,18.79181043,134.1,134.07,10.94752933]
[1745016207641,18.79181043,134.1,134.06,10.94752933]
[1745016208443,7.45767767,134.09,134.06,10.94752933]
[1745016211638,26.10187186,134.09,134.06,10.94752933]
[1745016214434,26.10187186,134.09,134.04,81.0]
[1745016214826,26.10187186,134.09,134.06,10.94752933]
[1745016216242,18.79181043,134.08,134.04,91.94752933]
[1745016217857,7.45879018,134.07,134.04,10.94752933]
[1745016220539,7.45879018,134.07,134.03,14.5]
[1745016220735,7.45879018,134.07,134.04,10.94752933]
[1745016221350,7.45879018,134.07,134.05,10.94752933]
[1745016228845,7.45879018,134.07,134.06,10.94752933]
[1745016241678,7.45879018,134.07,134.05,10.94752933]
[1745016248788,7.45879018,134.07,134.03,14.5]
[1745016248961,26.10576564,134.07,134.03,25.44752933]
[1745016249161,26.10576564,134.07,134.04,10.94752933]
[1745016249475,26.10576564,134.07,134.03,14.5]
[1745016249786,26.10576564,134.07,134.04,10.94752933]
[1745016251087,26.10576564,134.07,134.05,10.94752933]
[1745016253293,26.10576564,134.07,134.04,10.94752933]
[1745016260401,26.10576564,134.07,134.05,10.94752933]
[1745016261077,7.45879018,134.07,134.05,10.94752933]
[1745016267497,7.45879018,134.07,134.04,10.94752933]
[1745016275900,7.45879018,134.07,134.05,10.94752933]
[1745016276284,7.45879018,134.07,134.03,14.5]
[1745016276285,7.45879018,134.07,134.04,10.94752933]
[1745016276780,7.45879018,134.07,134.05,10.94752933]
[1745016276981,7.45879018,134.07,134.04,10.94752933]
[1745016278505,7.45879018,134.07,134.05,10.94752933]
[1745016281505,37.23185247,134.1,134.06,10.94752933]
[1745016281506,7.45767767,134.09,134.06,10.94752933]
[1745016282182,7.45767767,134.09,134.03,102.96098207]
[1745016282693,7.45767767,134.09,134.06,10.94752933]
[1745016284201,7.45767767,134.09,134.05,10.94752933]
[1745016284406,7.45767767,134.09,134.03,95.5]
[1745016284407,26.10187186,134.09,134.03,95.5]
[1745016284809,26.10187186,134.09,134.05,10.94752933]
[1745016288109,26.10187186,134.09,134.04,10.94752933]
[1745016290801,7.45879018,134.07,134.04,10.94752933]
[1745016293720,7.45879018,134.07,134.04,10.94752933]
[1745016294822,7.45879018,134.07,134.05,10.94752933]
[1745016295008,7.45879018,134.07,134.04,10.94752933]
[1745016296827,7.45879018,134.07,134.03,95.5]
[1745016297014,7.45879018,134.07,134.04,10.94752933]
[1745016299627,7.45879018,134.07,134.03,25.44752933]
[1745016300002,26.10576564,134.07,134.03,25.44752933]
[1745016303222,18.79181043,134.06,134.03,14.5]
[1745016303518,18.79181043,134.06,134.0,11.01052933]
[1745016303519,18.79181043,134.04,134.0,11.01052933]
[1745016303911,29.73933976,134.04,134.0,0.063]
[1745016304125,29.73933976,134.04,134.0,11.01052933]
[1745016304516,7.46101619,134.03,134.0,11.01052933]
[1745016305424,26.11355666,134.03,134.0,11.01052933]
[1745016306621,26.11355666,134.03,134.0,0.063]
[1745016307021,37.06108599,134.03,134.0,0.063]
[1745016318032,19.07613357,134.02,134.0,0.063]
[1745016318234,30.0236629,134.01,133.99,1e-08]
[1745016318447,11.23185247,134.0,133.99,1e-08]
[1745016320039,18.69453903,134.0,133.99,1e-08]
[1745016320837,7.46268656,134.0,133.99,10.94752934]
[1745016322540,44.90731556,134.02,133.99,1e-08]
[1745016325842,55.85484489,134.02,133.99,1e-08]
[1745016336055,44.90731556,134.02,133.99,1e-08]
[1745016336365,55.85484489,134.02,133.99,1e-08]
[1745016339332,44.90731556,134.02,133.99,1e-08]
[1745016340963,7.46157289,134.02,134.0,10.94752933]
[1745016343357,7.46101619,134.03,134.0,10.94752933]
[1745016355966,37.06108599,134.03,133.99,10.94752934]
[1745016356466,37.06108599,134.03,133.99,1e-08]
[1745016357256,37.06108599,134.03,133.99,10.94752934]
[1745016357772,37.06108599,134.03,133.99,1e-08]
[1745016362171,37.06108599,134.03,133.99,10.94752934]
[1745016363078,37.06108599,134.03,133.99,1e-08]
[1745016365176,26.11355666,134.03,133.99,10.94752934]
[1745016365386,26.11355666,134.03,134.0,10.94752933]
[1745016368871,7.46101619,134.03,134.0,10.94752933]
[1745016369384,37.06108599,134.03,133.99,14.50000001]
[1745016370978,26.11355666,134.03,133.99,1e-08]
[1745016383487,26.11355666,134.03,134.0,27.0]
[1745016391294,0.14216157,134.03,133.99,1e-08]
[1745016392395,26.25571823,134.03,133.99,1e-08]
[1745016401386,26.11355666,134.03,134.0,10.94752933]
[1745016402403,18.65254047,134.03,134.0,10.94752933]
[1745016403306,18.65254047,134.03,133.99,10.94752934]
[1745016404809,26.11355666,134.03,133.99,10.94752934]
[1745016405307,26.11355666,134.03,134.0,10.94752933]
[1745016406902,26.11355666,134.03,133.99,10.94752934]
[1745016409216,18.65254047,134.03,133.99,10.94752934]
[1745016415513,18.65254047,134.03,133.99,25.42752934]
[1745016415911,18.65254047,134.03,133.99,106.42752934]
[1745016438263,18.65254047,134.03,133.99,95.48000001]
[1745016439258,18.65254047,134.03,133.99,106.42752934]
[1745016439461,18.65254047,134.03,133.99,25.42752934]
[1745016440362,26.11355666,134.03,133.99,25.42752934]
[1745016443768,18.65254047,134.03,133.99,25.42752934]
[1745016446285,7.46045956,134.04,133.99,25.42752934]
[1745016446588,7.46045956,134.04,134.0,10.94752933]
[1745016454165,26.11160847,134.04,134.0,10.94752933]
[1745016456084,26.11160847,134.04,133.99,25.42752934]
[1745016463791,37.0591378,134.04,133.99,25.42752934]
[1745016467998,26.11160847,134.04,133.99,25.42752934]
[1745016471999,26.11160847,134.04,134.0,10.94752933]
[1745016475417,26.11160847,134.04,133.99,25.42752934]
[1745016480808,26.11160847,134.04,133.99,14.48000001]
[1745016481109,26.11160847,134.04,133.99,25.42752934]
[1745016481309,26.11160847,134.04,133.99,14.48000001]
[1745016484103,0.14216157,134.03,133.99,14.48000001]
[1745016486211,7.46157289,134.02,133.99,25.42752934]
[1745016497526,7.46157289,134.02,133.99,10.94752934]
[1745016497696,7.45879018,134.07,134.01,36.94752933]
[1745016498031,7.45879018,134.07,134.06,10.94752933]
[1745016499125,0.17216157,134.08,134.06,10.94752933]
[1745016499331,0.17216157,134.08,134.05,10.94752933]
[1745016500103,0.03,134.08,134.07,10.94752933]
[1745016506136,0.03,134.08,134.06,10.94752933]
[1745016506427,0.03,134.08,134.05,10.94752933]
[1745016506818,0.17216157,134.08,134.05,10.94752933]
[1745016509237,7.45879018,134.07,134.05,10.94752933]
[1745016510536,7.45879018,134.07,134.06,10.94752933]
[1745016512232,0.03,134.08,134.06,10.94752933]
[1745016516917,0.03,134.08,134.05,10.94752933]
[1745016519441,10.94752933,134.07,134.04,14.48]
[1745016519649,10.94752933,134.05,134.0,112.53822933]
[1745016519946,10.94752933,134.05,134.0,127.5907]
[1745016520244,10.94752933,134.05,134.0,138.53822933]
[1745016520547,7.46045956,134.04,134.0,138.53822933]
[1745016520729,7.46045956,134.04,134.01,10.94752933]
[1745016521560,7.45990302,134.05,134.01,10.94752933]
[1745016522655,7.45990302,134.05,134.02,10.94752933]
[1745016530063,26.10966057,134.05,134.0,121.48]
[1745016530470,26.10966057,134.05,134.0,132.42752933]
[1745016533071,26.10966057,134.05,134.01,10.94752933]
[1745016535088,18.79181043,134.04,134.0,14.48]
[1745016535254,10.94752933,134.03,134.0,14.48]
[1745016535685,0.14216157,134.02,134.0,14.48]
[1745016537583,7.46212969,134.01,134.0,14.48]
[1745016544197,0.14216157,134.0,133.99,1e-08]
[1745016545400,0.42648471,134.0,133.99,1e-08]
[1745016545577,30.0236629,134.0,133.99,1e-08]
[1745016545963,37.48634946,134.0,133.99,1e-08]
[1745016564922,56.14306587,134.0,133.97,0.063]
[1745016565218,0.14216157,133.97,133.96,0.03]
[1745016566319,30.0236629,133.97,133.96,0.03]
[1745016566726,30.0236629,133.97,133.95,0.063]
[1745016567021,26.39888689,133.96,133.95,0.063]
[1745016568423,37.34641622,133.96,133.95,0.063]
[1745016570296,18.933972,133.95,133.94,0.063]
[1745016570496,37.34697352,133.95,133.94,0.063]
[1745016571624,37.48913509,133.95,133.94,0.063]
[1745016576130,26.54160576,133.95,133.94,0.063]
[1745016576523,37.48913509,133.95,133.94,0.063]
[1745016581242,26.54160576,133.95,133.94,0.063]
[1745016582340,7.60763376,133.95,133.94,0.063]
[1745016585543,29.88150133,133.97,133.94,0.063]
[1745016585544,7.46513971,133.96,133.94,11.01052933]
[1745016585845,7.46513971,133.96,133.95,10.94752933]
[1745016586629,26.12389294,133.98,133.95,10.94752933]
[1745016586823,0.14216157,133.97,133.94,11.01052933]
[1745016588949,7.46491489,133.96,133.94,11.01052933]
[1745016593145,7.46449895,133.97,133.94,11.01052933]
[1745016593342,7.46449895,133.97,133.95,10.94752933]
[1745016593746,7.46395586,133.98,133.96,10.94752933]
[1745016594547,7.46324352,133.99,133.96,10.94752933]
[1745016597648,7.46324352,133.99,133.95,10.94752933]
[1745016597950,0.14216157,133.98,133.95,10.94752933]
[1745016598135,11.0896909,133.98,133.94,11.01052933]
[1745016599052,11.0896909,133.98,133.94,0.063]
[1745016599053,7.46435769,133.97,133.94,0.063]
[1745016601526,0.14216157,133.96,133.94,0.063]
[1745016602439,7.46547219,133.95,133.94,0.063]
[1745016609960,7.60763376,133.95,133.94,0.063]
[1745016626849,7.60763376,133.95,133.93,0.063]
[1745016626850,19.07613357,133.94,133.93,0.063]
[1745016627056,36.3523629,133.94,133.93,1e-08]
[1745016627271,26.0,133.91,133.9,1e-08]
[1745016627572,99.81378022,133.91,133.9,1e-08]
[1745016627878,99.81378022,133.91,133.88,1e-08]
[1745016628174,30.0236629,133.89,133.88,1e-08]
[1745016628392,37.49248058,133.89,133.88,1e-08]
[1745016631680,26.54495125,133.89,133.88,1e-08]
[1745016633280,0.14216157,133.9,133.88,1e-08]
[1745016633472,0.14216157,133.9,133.88,10.94752934]
[1745016633677,7.610543,133.9,133.88,10.94752934]
[1745016635902,7.610543,133.9,133.88,1e-08]
[1745016638493,18.933972,133.89,133.88,1e-08]
[1745016638787,29.88150133,133.89,133.88,1e-08]
[1745016639172,18.933972,133.89,133.88,1e-08]
[1745016643094,37.49248058,133.89,133.88,1e-08]
[1745016646075,7.46881768,133.89,133.88,1e-08]
[1745016646899,7.61097925,133.89,133.88,1e-08]
[1745016647201,18.84283172,133.89,133.88,1e-08]
[1745016648003,7.89530239,133.89,133.88,1e-08]
[1745016649583,7.46770218,133.91,133.88,10.94752934]
[1745016649902,18.66532696,133.94,133.89,10.94752933]
[1745016650111,45.20918814,133.93,133.89,10.94752933]
[1745016650404,56.15671747,133.93,133.88,91.94752934]
[1745016651382,0.14216157,133.9,133.88,1e-08]
[1745016652011,0.14216157,133.9,133.88,10.94752934]
[1745016652510,0.14216157,133.92,133.89,10.94752933]
[1745016652692,0.14216157,133.92,133.88,1e-08]
[1745016652900,7.46770218,133.91,133.89,10.94752933]
[1745016653596,7.46770218,133.91,133.88,10.94752934]
[1745016654108,7.46770218,133.91,133.89,10.94752933]
[1745016655917,7.46770218,133.91,133.88,10.94752934]
[1745016657516,7.46770218,133.91,133.88,1e-08]
[1745016657718,7.46770218,133.91,133.88,10.94752934]
[1745016658015,7.46770218,133.91,133.89,10.94752933]
[1745016663815,7.46770218,133.91,133.88,1e-08]
[1745016664027,7.46770218,133.91,133.89,10.94752933]
[1745016664321,7.46770218,133.91,133.88,1e-08]
[1745016664497,7.46770218,133.91,133.88,10.94752934]
[1745016665126,7.46770218,133.91,133.89,10.94752933]
[1745016667301,7.46770218,133.91,133.88,1e-08]
[1745016667518,7.46770218,133.91,133.88,10.94752934]
[1745016669225,0.14216157,133.9,133.88,1e-08]
[1745016671127,7.46881768,133.89,133.88,10.94752934]
[1745016671527,7.46881768,133.89,133.88,1e-08]
[1745016671847,7.46881768,133.89,133.88,10.94752934]
[1745016672629,7.46881768,133.89,133.88,1e-08]
[1745016672811,7.46881768,133.89,133.88,10.94752934]
[1745016674337,7.61097925,133.89,133.88,1e-08]
[1745016674637,7.61097925,133.89,133.88,10.94752934]
[1745016678645,7.60986375,133.91,133.88,10.94752934]
[1745016678944,7.60986375,133.91,133.9,10.94752933]
[1745016680747,7.60986375,133.91,133.89,10.94752933]
[1745016681733,7.60986375,133.91,133.9,10.94752933]
[1745016682941,7.60986375,133.91,133.89,10.94752933]
[1745016692365,7.60986375,133.91,133.88,1e-08]
[1745016692660,7.60986375,133.91,133.89,10.94752933]
[1745016692860,7.60930613,133.92,133.89,10.94752933]
[1745016693037,7.60930613,133.92,133.9,10.94752933]
[1745016693357,7.60930613,133.92,133.88,1e-08]
[1745016693561,7.60930613,133.92,133.89,10.94752933]
[1745016693762,7.60930613,133.92,133.88,10.94752934]
[1745016695270,7.60930613,133.92,133.9,10.94752933]
[1745016698066,7.46714456,133.92,133.9,10.94752933]
[1745016698245,7.46684498,133.93,133.91,10.94752933]
[1745016698566,7.60841226,133.94,133.92,10.94752933]
[1745016698740,7.60841226,133.94,133.93,10.94752933]
[1745016725900,7.60841226,133.94,133.93,10.94752933]
[1745016739611,7.46625069,133.94,133.93,10.94752933]
[1745016818902,7.46625069,133.94,133.9,7.46817121]
[1745016820189,0.063,133.96,133.89,6.0182]
[1745017140890,0.063,133.96,133.89,6.0182]
[1745017225974,0.063,133.96,133.89,6.0182]
[1745017320946,0.063,133.96,133.89,6.0182]
[1745017650923,0.063,133.96,133.89,6.0182]
[1745017691278,0.063,133.96,133.89,5.356]
[1745017711301,0.063,133.96,133.89,4.4671]
[1745017711705,0.063,133.96,133.89,3.7418]
[1745017712202,0.063,133.96,133.89,3.3884]
[1745017719016,0.063,133.96,133.88,1e-08]
[1745017719815,0.063,133.96,133.86,1.7122]
[1745017720116,0.063,133.96,133.85,0.063]
[1745017721111,0.063,133.96,133.83,0.03]
[1745017796696,0.063,133.96,90.0,2.0]
[1745017796887,0.063,133.96,133.6,0.11656044]
[1745017797081,0.063,133.96,132.8,20.8045021]
[1745017797393,0.063,133.96,133.51,0.020308]
[1745017797591,0.063,133.96,132.8,0.21750016]
[1745017797777,0.063,133.96,133.51,0.020308]
[1745017797980,0.063,133.96,132.8,20.80141581]
[1745017798185,0.063,133.96,133.51,0.020308]
[1745017798386,0.063,133.96,132.8,20.80141581]
[1745017798595,0.063,133.96,133.51,0.020308]
[1745017798797,0.063,133.96,132.8,0.21750016]
[1745017799099,0.063,133.96,133.51,0.020308]
[1745017799300,0.063,133.96,132.8,20.80141581]
[1745017799501,0.063,133.96,133.51,0.020308]
[1745017799796,0.063,133.96,132.8,20.80141581]
[1745017799987,0.063,133.96,133.51,0.020308]
[1745017800178,0.063,133.96,132.8,20.80141581]